[Event "Titled Tuesday Blitz January 31 Late 2023"]
[White "Predke, Alexandr"]
[Black "Stoyanov, Tsvetan"]
[WhiteFideId "24107581"]
[BlackFideId "2917173"]
[WhiteElo "2685"]
[BlackElo "2454"]
[Result "1-0"]
[Round "08"]
[TimeControl "180+2"]
[Date "2023.01.31"]
[WhiteClock "0:00:07"]
[BlackClock "0:00:01"]

1. e4 {[%clk 0:02:59]}  c5 {[%clk 0:03:00]} 2. Nf3 {[%clk 0:02:59]}  d6 {[%clk 0:03:00]} 3. Nc3 {[%clk 0:02:59]}  a6 {[%clk 0:02:59]} 4. Bc4 {[%clk 0:02:58]}  e6 {[%clk 0:02:58]} 5. a3 {[%clk 0:02:58]}  Nf6 {[%clk 0:02:57]} 6. d3 {[%clk 0:02:49]}  Be7 {[%clk 0:02:57]} 7. O-O {[%clk 0:02:49]}  Nc6 {[%clk 0:02:57]} 8. Ba2 {[%clk 0:02:47]}  O-O {[%clk 0:02:57]} 9. Ne2 {[%clk 0:02:47]}  b5 {[%clk 0:02:52]} 10. Ng3 {[%clk 0:02:44]}  Bb7 {[%clk 0:02:52]} 11. c3 {[%clk 0:02:34]}  d5 {[%clk 0:02:52]} 12. e5 {[%clk 0:02:34]}  Nd7 {[%clk 0:02:50]} 13. d4 {[%clk 0:02:34]}  cxd4 {[%clk 0:02:27]} 14. cxd4 {[%clk 0:02:34]}  f5 {[%clk 0:02:27]} 15. exf6 {[%clk 0:02:17]}  Bxf6 {[%clk 0:02:27]} 16. Re1 {[%clk 0:02:11]}  Re8 {[%clk 0:02:03]} 17. Nh5 {[%clk 0:02:03]}  Nf8 {[%clk 0:01:56]} 18. Bf4 {[%clk 0:01:51]}  Be7 {[%clk 0:01:45]} 19. Bg3 {[%clk 0:01:44]}  Bd6 {[%clk 0:01:39]} 20. Rc1 {[%clk 0:01:39]}  Bxg3 {[%clk 0:01:37]} 21. hxg3 {[%clk 0:01:40]}  Rc8 {[%clk 0:01:37]} 22. Bb1 {[%clk 0:01:24]}  g6 {[%clk 0:01:25]} 23. Nf4 {[%clk 0:01:23]}  Qf6 {[%clk 0:01:25]} 24. Rc3 {[%clk 0:01:06]}  g5 {[%clk 0:00:38]} 25. Nh5 {[%clk 0:00:58]}  Qf7 {[%clk 0:00:22]} 26. Rxc6 {[%clk 0:00:32]}  Qxh5 {[%clk 0:00:17]} 27. Rb6 {[%clk 0:00:32]}  Re7 {[%clk 0:00:16]} 28. Qd2 {[%clk 0:00:28]}  h6 {[%clk 0:00:12]} 29. Ne5 {[%clk 0:00:27]}  Qe8 {[%clk 0:00:07]} 30. Rd6 {[%clk 0:00:14]}  Rd8 {[%clk 0:00:05]} 31. Rxd8 {[%clk 0:00:10]}  Qxd8 {[%clk 0:00:05]} 32. f4 {[%clk 0:00:10]}  Rg7 {[%clk 0:00:05]} 33. f5 {[%clk 0:00:10]}  Bc8 {[%clk 0:00:04]} 34. g4 {[%clk 0:00:08]}  exf5 {[%clk 0:00:05]} 35. gxf5 {[%clk 0:00:09]}  Qf6 {[%clk 0:00:05]} 36. Ng4 {[%clk 0:00:09]}  Qb6 {[%clk 0:00:05]} 37. f6 {[%clk 0:00:09]}  Bxg4 {[%clk 0:00:02]} 38. fxg7 {[%clk 0:00:08]}  Kxg7 {[%clk 0:00:03]} 39. Re7+ {[%clk 0:00:08]}  Kg8 {[%clk 0:00:04]} 40. Qe3 {[%clk 0:00:07]}  Qf6 {[%clk 0:00:04]} 41. Bd3 {[%clk 0:00:06]}  Bh5 {[%clk 0:00:03]} 42. Qe5 {[%clk 0:00:06]}  Qxe5 {[%clk 0:00:02]} 43. dxe5 {[%clk 0:00:06]}  Ng6 {[%clk 0:00:02]} 44. Bxg6 {[%clk 0:00:06]}  Bxg6 {[%clk 0:00:01]} 45. Re6 {[%clk 0:00:05]}  Kf7 {[%clk 0:00:01]} 46. Rf6+ {[%clk 0:00:06]}  Kg7 {[%clk 0:00:01]} 47. Rxa6 {[%clk 0:00:07]}  d4 {[%clk 0:00:01]} 48. Kf2 {[%clk 0:00:07]} 1-0


[Site "https://www.chess.com"]

[Event "Titled Tuesday Blitz January 31 Late 2023"]
[White "Tworuszka, Michal"]
[Black "Paichadze, Luka"]
[WhiteFideId "1117858"]
[BlackFideId "13602934"]
[WhiteElo "2260"]
[BlackElo "2515"]
[Result "1/2-1/2"]
[Round "08"]
[TimeControl "180+2"]
[Date "2023.01.31"]
[WhiteClock "0:00:10"]
[BlackClock "0:00:11"]

1. e4 {[%clk 0:03:00]}  c6 {[%clk 0:02:58]} 2. d4 {[%clk 0:02:52]}  d5 {[%clk 0:02:59]} 3. Nc3 {[%clk 0:02:52]}  dxe4 {[%clk 0:02:59]} 4. Nxe4 {[%clk 0:02:52]}  Bf5 {[%clk 0:02:59]} 5. Qf3 {[%clk 0:02:52]}  e6 {[%clk 0:02:54]} 6. Ne2 {[%clk 0:02:52]}  Bxe4 {[%clk 0:02:48]} 7. Qxe4 {[%clk 0:02:51]}  Nf6 {[%clk 0:02:49]} 8. Qd3 {[%clk 0:02:49]}  Nbd7 {[%clk 0:02:49]} 9. g3 {[%clk 0:02:40]}  Qc7 {[%clk 0:02:20]} 10. Bg2 {[%clk 0:02:38]}  Be7 {[%clk 0:02:19]} 11. O-O {[%clk 0:02:36]}  O-O {[%clk 0:02:19]} 12. h3 {[%clk 0:02:28]}  Rfd8 {[%clk 0:02:19]} 13. Qb3 {[%clk 0:02:25]}  Rac8 {[%clk 0:02:14]} 14. c3 {[%clk 0:02:17]}  b6 {[%clk 0:02:11]} 15. a4 {[%clk 0:02:16]}  c5 {[%clk 0:02:10]} 16. Bf4 {[%clk 0:02:04]}  Bd6 {[%clk 0:02:09]} 17. Rfd1 {[%clk 0:02:00]}  Bxf4 {[%clk 0:02:07]} 18. Nxf4 {[%clk 0:02:00]}  cxd4 {[%clk 0:02:03]} 19. Rxd4 {[%clk 0:01:58]}  Nc5 {[%clk 0:01:55]} 20. Rxd8+ {[%clk 0:01:55]}  Rxd8 {[%clk 0:01:54]} 21. Qb5 {[%clk 0:01:51]}  h6 {[%clk 0:01:40]} 22. a5 {[%clk 0:01:46]}  e5 {[%clk 0:01:39]} 23. axb6 {[%clk 0:01:43]}  axb6 {[%clk 0:01:38]} 24. Ne2 {[%clk 0:01:28]}  Rd2 {[%clk 0:01:29]} 25. g4 {[%clk 0:00:48]}  Nd3 {[%clk 0:01:11]} 26. Ng3 {[%clk 0:00:37]}  Nxf2 {[%clk 0:00:59]} 27. Nf1 {[%clk 0:00:20]}  Rc2 {[%clk 0:00:38]} 28. Ne3 {[%clk 0:00:20]}  Rd2 {[%clk 0:00:36]} 29. Nf1 {[%clk 0:00:20]}  Nxh3+ {[%clk 0:00:20]} 30. Bxh3 {[%clk 0:00:20]}  Rd5 {[%clk 0:00:20]} 31. Qe2 {[%clk 0:00:18]}  e4 {[%clk 0:00:20]} 32. Bg2 {[%clk 0:00:18]}  Qf4 {[%clk 0:00:16]} 33. Ne3 {[%clk 0:00:16]}  Rd3 {[%clk 0:00:15]} 34. Re1 {[%clk 0:00:15]}  g6 {[%clk 0:00:14]} 35. Qf2 {[%clk 0:00:15]}  Qg5 {[%clk 0:00:12]} 36. Rf1 {[%clk 0:00:15]}  Kg7 {[%clk 0:00:10]} 37. Nc2 {[%clk 0:00:13]}  Rd2 {[%clk 0:00:09]} 38. Qxf6+ {[%clk 0:00:11]}  Qxf6 {[%clk 0:00:08]} 39. Rxf6 {[%clk 0:00:11]}  Kxf6 {[%clk 0:00:08]} 40. Bxe4 {[%clk 0:00:12]}  Ke5 {[%clk 0:00:07]} 41. Bxg6 {[%clk 0:00:06]}  fxg6 {[%clk 0:00:07]} 42. Ne3 {[%clk 0:00:06]}  Ke4 {[%clk 0:00:06]} 43. Nc4 {[%clk 0:00:06]}  b5 {[%clk 0:00:06]} 44. Nxd2+ {[%clk 0:00:06]}  Kd3 {[%clk 0:00:06]} 45. Nf3 {[%clk 0:00:06]}  Kc2 {[%clk 0:00:07]} 46. Nd4+ {[%clk 0:00:06]}  Kxb2 {[%clk 0:00:07]} 47. Nxb5 {[%clk 0:00:07]}  Kb3 {[%clk 0:00:07]} 48. Kf2 {[%clk 0:00:07]}  Kc4 {[%clk 0:00:08]} 49. Nd6+ {[%clk 0:00:07]}  Kxc3 {[%clk 0:00:08]} 50. Nf7 {[%clk 0:00:08]}  h5 {[%clk 0:00:08]} 51. g5 {[%clk 0:00:08]}  Kd4 {[%clk 0:00:09]} 52. Nh8 {[%clk 0:00:08]}  Ke5 {[%clk 0:00:09]} 53. Nxg6+ {[%clk 0:00:09]}  Kf5 {[%clk 0:00:09]} 54. Nh4+ {[%clk 0:00:08]}  Kxg5 {[%clk 0:00:10]} 55. Nf3+ {[%clk 0:00:09]}  Kg4 {[%clk 0:00:10]} 56. Kg2 {[%clk 0:00:09]}  h4 {[%clk 0:00:11]} 57. Nxh4 {[%clk 0:00:10]} 1/2-1/2


[Site "https://www.chess.com"]

[Event "Titled Tuesday Blitz January 31 Late 2023"]
[White "Pranav, V"]
[Black "Kanakaris, Georgios"]
[WhiteFideId "25060783"]
[BlackFideId "4209460"]
[WhiteElo "2597"]
[BlackElo "2391"]
[Result "1-0"]
[Round "08"]
[TimeControl "180+2"]
[Date "2023.01.31"]
[WhiteClock "0:01:54"]
[BlackClock "0:00:20"]

1. b3 {[%clk 0:03:00]}  Nf6 {[%clk 0:02:58]} 2. Bb2 {[%clk 0:03:01]}  e6 {[%clk 0:02:58]} 3. c4 {[%clk 0:03:02]}  d5 {[%clk 0:02:57]} 4. e3 {[%clk 0:03:02]}  c5 {[%clk 0:02:55]} 5. Nf3 {[%clk 0:03:02]}  Nc6 {[%clk 0:02:56]} 6. Be2 {[%clk 0:03:01]}  Be7 {[%clk 0:02:56]} 7. O-O {[%clk 0:03:01]}  O-O {[%clk 0:02:56]} 8. cxd5 {[%clk 0:03:01]}  Nxd5 {[%clk 0:02:55]} 9. Nc3 {[%clk 0:03:01]}  Nxc3 {[%clk 0:02:51]} 10. Bxc3 {[%clk 0:03:01]}  b6 {[%clk 0:02:47]} 11. Rc1 {[%clk 0:03:00]}  Bb7 {[%clk 0:02:47]} 12. Qc2 {[%clk 0:03:01]}  Bf6 {[%clk 0:02:44]} 13. Rfd1 {[%clk 0:03:00]}  Bxc3 {[%clk 0:02:43]} 14. dxc3 {[%clk 0:03:00]}  Qe7 {[%clk 0:02:41]} 15. h4 {[%clk 0:03:00]}  h6 {[%clk 0:02:39]} 16. Bd3 {[%clk 0:03:00]}  Rfd8 {[%clk 0:02:36]} 17. Be4 {[%clk 0:03:00]}  Rxd1+ {[%clk 0:02:32]} 18. Rxd1 {[%clk 0:02:59]}  Rd8 {[%clk 0:02:32]} 19. g3 {[%clk 0:02:54]}  Rd6 {[%clk 0:02:17]} 20. h5 {[%clk 0:02:49]}  Qd8 {[%clk 0:02:13]} 21. Rxd6 {[%clk 0:02:47]}  Qxd6 {[%clk 0:02:14]} 22. g4 {[%clk 0:02:29]}  Kf8 {[%clk 0:01:49]} 23. a3 {[%clk 0:02:27]}  Ke7 {[%clk 0:01:44]} 24. b4 {[%clk 0:02:26]}  f6 {[%clk 0:01:09]} 25. b5 {[%clk 0:02:18]}  Na5 {[%clk 0:01:02]} 26. Bxb7 {[%clk 0:02:16]}  Nxb7 {[%clk 0:01:02]} 27. Qh7 {[%clk 0:02:16]}  Kf7 {[%clk 0:00:55]} 28. Qg6+ {[%clk 0:02:11]}  Kf8 {[%clk 0:00:55]} 29. Kg2 {[%clk 0:01:58]}  Qd5 {[%clk 0:00:48]} 30. e4 {[%clk 0:01:58]}  Qd3 {[%clk 0:00:42]} 31. g5 {[%clk 0:01:54]}  fxg5 {[%clk 0:00:20]} 32. Ne5 {[%clk 0:01:54]} 1-0


[Site "https://www.chess.com"]

[Event "Titled Tuesday Blitz January 31 Late 2023"]
[White "Bjelobrk, Igor"]
[Black "Tari, Aryan"]
[WhiteFideId "4300726"]
[BlackFideId "1510045"]
[WhiteElo "2403"]
[BlackElo "2642"]
[Result "1-0"]
[Round "08"]
[TimeControl "180+2"]
[Date "2023.01.31"]
[WhiteClock "0:00:17"]
[BlackClock "0:00:01"]

1. d4 {[%clk 0:03:00]}  Nf6 {[%clk 0:02:43]} 2. c4 {[%clk 0:03:00]}  b6 {[%clk 0:02:39]} 3. Nc3 {[%clk 0:02:58]}  Bb7 {[%clk 0:02:39]} 4. Qc2 {[%clk 0:02:53]}  d5 {[%clk 0:02:39]} 5. cxd5 {[%clk 0:02:51]}  Nxd5 {[%clk 0:02:40]} 6. e4 {[%clk 0:02:51]}  Nxc3 {[%clk 0:02:40]} 7. bxc3 {[%clk 0:02:50]}  e5 {[%clk 0:02:41]} 8. Nf3 {[%clk 0:02:49]}  exd4 {[%clk 0:02:31]} 9. Bc4 {[%clk 0:02:49]}  d3 {[%clk 0:02:15]} 10. Qb3 {[%clk 0:02:39]}  Qe7 {[%clk 0:02:12]} 11. Ng5 {[%clk 0:02:32]}  f6 {[%clk 0:01:57]} 12. Bf7+ {[%clk 0:02:29]}  Kd8 {[%clk 0:01:48]} 13. Bd5 {[%clk 0:02:19]}  c6 {[%clk 0:01:04]} 14. Nf7+ {[%clk 0:02:08]}  Ke8 {[%clk 0:01:02]} 15. Be6 {[%clk 0:02:08]}  Na6 {[%clk 0:00:35]} 16. Be3 {[%clk 0:01:36]}  Nc7 {[%clk 0:00:35]} 17. Bc4 {[%clk 0:01:28]}  Rg8 {[%clk 0:00:29]} 18. O-O {[%clk 0:01:19]}  b5 {[%clk 0:00:29]} 19. Nd6+ {[%clk 0:01:16]}  Qxd6 {[%clk 0:00:29]} 20. Bxg8 {[%clk 0:01:17]}  c5 {[%clk 0:00:13]} 21. c4 {[%clk 0:01:14]}  b4 {[%clk 0:00:10]} 22. Bd5 {[%clk 0:01:10]}  Nxd5 {[%clk 0:00:10]} 23. exd5 {[%clk 0:01:10]}  Kf7 {[%clk 0:00:09]} 24. Qxd3 {[%clk 0:01:09]}  g6 {[%clk 0:00:09]} 25. Rfe1 {[%clk 0:01:09]}  Bc8 {[%clk 0:00:10]} 26. a3 {[%clk 0:01:02]}  Bf5 {[%clk 0:00:10]} 27. Qb3 {[%clk 0:01:02]}  Rb8 {[%clk 0:00:02]} 28. axb4 {[%clk 0:01:00]}  Rxb4 {[%clk 0:00:03]} 29. Rxa7+ {[%clk 0:01:00]}  Kg8 {[%clk 0:00:03]} 30. Qc3 {[%clk 0:00:55]}  Qb6 {[%clk 0:00:03]} 31. Ra8 {[%clk 0:00:48]}  Kg7 {[%clk 0:00:04]} 32. Bf4 {[%clk 0:00:29]}  Rb1 {[%clk 0:00:04]} 33. Rb8 {[%clk 0:00:27]}  Qxb8 {[%clk 0:00:02]} 34. Bxb8 {[%clk 0:00:26]}  Rxb8 {[%clk 0:00:03]} 35. h3 {[%clk 0:00:26]}  Bd6 {[%clk 0:00:03]} 36. g4 {[%clk 0:00:24]}  Bd7 {[%clk 0:00:01]} 37. g5 {[%clk 0:00:17]} 1-0


[Site "https://www.chess.com"]

[Event "Titled Tuesday Blitz January 31 Late 2023"]
[White "Real_OceanStorm"]
[Black "Kazakouski, Valery"]
[BlackFideId "13507443"]
[WhiteElo "2671"]
[BlackElo "2539"]
[Result "0-1"]
[Round "08"]
[TimeControl "180+2"]
[Date "2023.01.31"]
[WhiteClock "0:00:03"]
[BlackClock "0:01:00"]

1. Nf3 {[%clk 0:03:00]}  d5 {[%clk 0:02:58]} 2. b3 {[%clk 0:03:01]}  Bg4 {[%clk 0:02:58]} 3. Bb2 {[%clk 0:03:01]}  Bxf3 {[%clk 0:02:58]} 4. gxf3 {[%clk 0:03:01]}  e6 {[%clk 0:02:58]} 5. d4 {[%clk 0:03:02]}  Nf6 {[%clk 0:02:58]} 6. Nd2 {[%clk 0:03:02]}  c5 {[%clk 0:02:54]} 7. dxc5 {[%clk 0:02:53]}  Bxc5 {[%clk 0:02:55]} 8. c4 {[%clk 0:02:52]}  d4 {[%clk 0:02:48]} 9. a3 {[%clk 0:02:52]}  a5 {[%clk 0:02:48]} 10. b4 {[%clk 0:02:51]}  axb4 {[%clk 0:02:45]} 11. axb4 {[%clk 0:02:51]}  Rxa1 {[%clk 0:02:45]} 12. Bxa1 {[%clk 0:02:52]}  Bxb4 {[%clk 0:02:45]} 13. Qb3 {[%clk 0:02:49]}  Nc6 {[%clk 0:02:45]} 14. Bb2 {[%clk 0:02:38]}  Qa5 {[%clk 0:02:43]} 15. Qd3 {[%clk 0:02:36]}  O-O {[%clk 0:02:32]} 16. Qc2 {[%clk 0:02:36]}  Qa2 {[%clk 0:02:20]} 17. Kd1 {[%clk 0:01:46]}  Ra8 {[%clk 0:01:58]} 18. e3 {[%clk 0:01:43]}  dxe3 {[%clk 0:01:57]} 19. fxe3 {[%clk 0:01:43]}  Rd8 {[%clk 0:01:56]} 20. Bd3 {[%clk 0:01:14]}  Rxd3 {[%clk 0:01:50]} 21. Qxd3 {[%clk 0:01:13]}  Qxb2 {[%clk 0:01:50]} 22. Ke2 {[%clk 0:01:13]}  g6 {[%clk 0:01:34]} 23. Rb1 {[%clk 0:01:13]}  Qe5 {[%clk 0:01:34]} 24. Nf1 {[%clk 0:00:58]}  b6 {[%clk 0:01:25]} 25. Ng3 {[%clk 0:00:58]}  Bc5 {[%clk 0:01:23]} 26. f4 {[%clk 0:00:53]}  Qc7 {[%clk 0:01:22]} 27. Ne4 {[%clk 0:00:35]}  Nxe4 {[%clk 0:01:20]} 28. Qxe4 {[%clk 0:00:36]}  Ne7 {[%clk 0:01:18]} 29. Ra1 {[%clk 0:00:34]}  Nf5 {[%clk 0:01:17]} 30. Kf3 {[%clk 0:00:26]}  Bxe3 {[%clk 0:01:13]} 31. Ra8+ {[%clk 0:00:26]}  Kg7 {[%clk 0:01:13]} 32. h3 {[%clk 0:00:14]}  Bc5 {[%clk 0:01:11]} 33. Ra1 {[%clk 0:00:05]}  Nd4+ {[%clk 0:01:10]} 34. Kg3 {[%clk 0:00:05]}  Nf5+ {[%clk 0:01:10]} 35. Kg2 {[%clk 0:00:05]}  h5 {[%clk 0:01:07]} 36. Re1 {[%clk 0:00:03]}  Qd7 {[%clk 0:01:07]} 37. Qe2 {[%clk 0:00:03]}  Qd4 {[%clk 0:01:06]} 38. Qe5+ {[%clk 0:00:01]}  Qxe5 {[%clk 0:01:06]} 39. fxe5 {[%clk 0:00:02]}  Ne7 {[%clk 0:01:04]} 40. Kf3 {[%clk 0:00:02]}  Nc6 {[%clk 0:01:04]} 41. Kf4 {[%clk 0:00:03]}  Bd4 {[%clk 0:01:04]} 42. Re2 {[%clk 0:00:03]}  Bxe5+ {[%clk 0:01:00]} 0-1


[Site "https://www.chess.com"]

[Event "Titled Tuesday Blitz January 31 Late 2023"]
[White "Leiva, Gianmarco"]
[Black "Yuan, Qingyu"]
[WhiteFideId "3804399"]
[BlackFideId "8609772"]
[WhiteElo "2392"]
[BlackElo "2373"]
[Result "0-1"]
[Round "08"]
[TimeControl "180+2"]
[Date "2023.01.31"]
[WhiteClock "0:00:19"]
[BlackClock "0:00:12"]

1. e4 {[%clk 0:02:59]}  e5 {[%clk 0:03:00]} 2. f3 {[%clk 0:02:59]}  d5 {[%clk 0:02:50]} 3. g3 {[%clk 0:02:51]}  Nf6 {[%clk 0:02:48]} 4. Bg2 {[%clk 0:02:48]}  Bc5 {[%clk 0:02:43]} 5. d3 {[%clk 0:02:47]}  O-O {[%clk 0:02:38]} 6. Nh3 {[%clk 0:02:46]}  dxe4 {[%clk 0:02:32]} 7. dxe4 {[%clk 0:02:43]}  Qe7 {[%clk 0:02:29]} 8. Nf2 {[%clk 0:02:39]}  Rd8 {[%clk 0:02:24]} 9. Qe2 {[%clk 0:02:38]}  b6 {[%clk 0:02:24]} 10. Nd2 {[%clk 0:01:31]}  Ba6 {[%clk 0:02:22]} 11. c4 {[%clk 0:01:26]}  Nc6 {[%clk 0:02:15]} 12. Nb3 {[%clk 0:01:27]}  Bb4+ {[%clk 0:02:03]} 13. Bd2 {[%clk 0:01:27]}  Bxd2+ {[%clk 0:01:59]} 14. Nxd2 {[%clk 0:01:27]}  Nd4 {[%clk 0:01:45]} 15. Qd1 {[%clk 0:01:16]}  Qb4 {[%clk 0:01:12]} 16. Nd3 {[%clk 0:01:11]}  Qa5 {[%clk 0:01:10]} 17. a3 {[%clk 0:01:07]}  Bxc4 {[%clk 0:00:58]} 18. b4 {[%clk 0:00:55]}  Qa6 {[%clk 0:00:58]} 19. Nxc4 {[%clk 0:00:50]}  Qxc4 {[%clk 0:00:57]} 20. Rc1 {[%clk 0:00:50]}  Qa6 {[%clk 0:00:46]} 21. O-O {[%clk 0:00:39]}  Qxa3 {[%clk 0:00:33]} 22. Ra1 {[%clk 0:00:39]}  Qb3 {[%clk 0:00:24]} 23. Nxe5 {[%clk 0:00:39]}  Qxb4 {[%clk 0:00:20]} 24. Rb1 {[%clk 0:00:34]}  Qc5 {[%clk 0:00:20]} 25. Nd3 {[%clk 0:00:31]}  Ne2+ {[%clk 0:00:20]} 26. Kh1 {[%clk 0:00:30]}  Qe3 {[%clk 0:00:20]} 27. Re1 {[%clk 0:00:24]}  Rxd3 {[%clk 0:00:18]} 28. Qxe2 {[%clk 0:00:24]}  Qxe2 {[%clk 0:00:19]} 29. Rxe2 {[%clk 0:00:25]}  a5 {[%clk 0:00:18]} 30. f4 {[%clk 0:00:24]}  a4 {[%clk 0:00:18]} 31. Rc2 {[%clk 0:00:21]}  a3 {[%clk 0:00:14]} 32. Rxc7 {[%clk 0:00:18]}  a2 {[%clk 0:00:14]} 33. Rbc1 {[%clk 0:00:19]}  a1=Q {[%clk 0:00:12]} 34. e5 {[%clk 0:00:19]}  Rd1+ {[%clk 0:00:12]} 0-1


[Site "https://www.chess.com"]

[Event "Titled Tuesday Blitz January 31 Late 2023"]
[White "Suder, Jakub"]
[Black "Karolczuk, Iwo"]
[WhiteFideId "1195310"]
[BlackFideId "21816972"]
[WhiteElo "2244"]
[BlackElo "2343"]
[Result "0-1"]
[Round "08"]
[TimeControl "180+2"]
[Date "2023.01.31"]
[WhiteClock "0:02:43"]
[BlackClock "0:01:46"]

1. d4 {[%clk 0:03:00]}  Nf6 {[%clk 0:02:59]} 2. c4 {[%clk 0:03:01]}  e6 {[%clk 0:02:59]} 3. Nc3 {[%clk 0:03:01]}  Bb4 {[%clk 0:02:59]} 4. f3 {[%clk 0:03:01]}  c5 {[%clk 0:02:58]} 5. d5 {[%clk 0:03:01]}  b5 {[%clk 0:02:51]} 6. e4 {[%clk 0:03:01]}  d6 {[%clk 0:02:48]} 7. Bd2 {[%clk 0:03:00]}  O-O {[%clk 0:02:41]} 8. Nxb5 {[%clk 0:02:58]}  a6 {[%clk 0:02:28]} 9. Nc3 {[%clk 0:02:54]}  exd5 {[%clk 0:02:28]} 10. Nxd5 {[%clk 0:02:52]}  Nxd5 {[%clk 0:02:12]} 11. exd5 {[%clk 0:02:49]}  Re8+ {[%clk 0:02:10]} 12. Kf2 {[%clk 0:02:49]}  Qh4+ {[%clk 0:02:09]} 13. g3 {[%clk 0:02:43]}  Qd4+ {[%clk 0:02:09]} 14. Kg2 {[%clk 0:02:43]}  Qxb2 {[%clk 0:01:46]} 0-1


[Site "https://www.chess.com"]

[Event "Titled Tuesday Blitz January 31 Late 2023"]
[White "Santos Ruiz, Miguel"]
[Black "Fiorito, Joaquin"]
[WhiteFideId "22291482"]
[BlackFideId "180173"]
[WhiteElo "2590"]
[BlackElo "2405"]
[Result "1-0"]
[Round "08"]
[TimeControl "180+2"]
[Date "2023.01.31"]
[WhiteClock "0:00:29"]
[BlackClock "0:00:54"]

1. e4 {[%clk 0:03:00]}  c6 {[%clk 0:03:00]} 2. d4 {[%clk 0:03:00]}  d5 {[%clk 0:03:00]} 3. exd5 {[%clk 0:03:01]}  cxd5 {[%clk 0:03:00]} 4. c3 {[%clk 0:03:01]}  Nf6 {[%clk 0:03:00]} 5. Nf3 {[%clk 0:03:01]}  Nc6 {[%clk 0:03:00]} 6. Ne5 {[%clk 0:03:00]}  Bd7 {[%clk 0:02:59]} 7. Nd2 {[%clk 0:02:59]}  g6 {[%clk 0:02:59]} 8. Ndf3 {[%clk 0:02:56]}  Bg7 {[%clk 0:02:59]} 9. Be2 {[%clk 0:02:53]}  O-O {[%clk 0:02:59]} 10. O-O {[%clk 0:02:53]}  Rc8 {[%clk 0:02:58]} 11. Re1 {[%clk 0:02:49]}  Bf5 {[%clk 0:02:56]} 12. h3 {[%clk 0:02:45]}  Ne4 {[%clk 0:02:55]} 13. a4 {[%clk 0:02:40]}  Nxe5 {[%clk 0:02:46]} 14. Nxe5 {[%clk 0:02:38]}  Bxe5 {[%clk 0:02:45]} 15. dxe5 {[%clk 0:02:38]}  Qb6 {[%clk 0:02:46]} 16. Qd4 {[%clk 0:02:27]}  Qxd4 {[%clk 0:02:15]} 17. cxd4 {[%clk 0:02:25]}  f6 {[%clk 0:02:15]} 18. g4 {[%clk 0:01:52]}  Bd7 {[%clk 0:02:14]} 19. f3 {[%clk 0:01:51]}  Ng3 {[%clk 0:02:12]} 20. Bd1 {[%clk 0:00:56]}  fxe5 {[%clk 0:02:08]} 21. Kg2 {[%clk 0:00:55]}  exd4 {[%clk 0:01:36]} 22. Kxg3 {[%clk 0:00:55]}  Rce8 {[%clk 0:01:32]} 23. Re5 {[%clk 0:00:54]}  e6 {[%clk 0:01:32]} 24. b3 {[%clk 0:00:51]}  Rc8 {[%clk 0:01:32]} 25. Bb2 {[%clk 0:00:51]}  d3 {[%clk 0:01:32]} 26. Re3 {[%clk 0:00:48]}  d2 {[%clk 0:01:31]} 27. Rd3 {[%clk 0:00:46]}  Bc6 {[%clk 0:01:29]} 28. Rxd2 {[%clk 0:00:45]}  Rce8 {[%clk 0:01:28]} 29. Be5 {[%clk 0:00:45]}  Rc8 {[%clk 0:01:25]} 30. Be2 {[%clk 0:00:42]}  Bd7 {[%clk 0:01:23]} 31. Bd3 {[%clk 0:00:42]}  Bc6 {[%clk 0:01:23]} 32. h4 {[%clk 0:00:42]}  Bd7 {[%clk 0:01:20]} 33. h5 {[%clk 0:00:41]}  g5 {[%clk 0:01:20]} 34. Rdd1 {[%clk 0:00:38]}  Bc6 {[%clk 0:01:17]} 35. Rac1 {[%clk 0:00:37]}  Rf7 {[%clk 0:01:15]} 36. Be2 {[%clk 0:00:35]}  h6 {[%clk 0:01:14]} 37. Rd4 {[%clk 0:00:35]}  Rcf8 {[%clk 0:01:12]} 38. b4 {[%clk 0:00:35]}  Bxa4 {[%clk 0:01:11]} 39. b5 {[%clk 0:00:35]}  Bb3 {[%clk 0:01:07]} 40. Rc3 {[%clk 0:00:35]}  Bc4 {[%clk 0:01:05]} 41. Bxc4 {[%clk 0:00:35]}  dxc4 {[%clk 0:01:06]} 42. Rdxc4 {[%clk 0:00:35]}  Rd7 {[%clk 0:01:05]} 43. Rc8 {[%clk 0:00:35]}  Rd5 {[%clk 0:00:57]} 44. Rxf8+ {[%clk 0:00:34]}  Kxf8 {[%clk 0:00:58]} 45. Rc8+ {[%clk 0:00:32]}  Ke7 {[%clk 0:00:57]} 46. Bg7 {[%clk 0:00:30]}  Rxb5 {[%clk 0:00:55]} 47. Bxh6 {[%clk 0:00:30]}  Kf7 {[%clk 0:00:55]} 48. Rc7+ {[%clk 0:00:29]}  Kf6 {[%clk 0:00:54]} 49. Bg7# {[%clk 0:00:29]} 1-0


[Site "https://www.chess.com"]